Cogmind - Beta 13 @@@ ROGUE MODE // 2024.03.31 @ 15:56:45 Player: Mogwok Wargfriend Result: Destroyed by D-53 Grenadier with Mini Grenade Launcher Performance ------------- Evolutions (0) 0 Regions Visited (2) 400 Robots Destroyed (31) 155 Value Destroyed (510) 510 Prototype IDs (0) 0 Alien Tech Used (0) 0 Bonus (0) 0 TOTAL SCORE: 1065 Bonus ------- None Cogmind --------- Core Integrity 0/250 Matter 262/300 Energy 49/100 System Corruption 13% Temperature Cool (30) Movement Treading (240) Ox1 Location -10/Mines Parts ------- > --- POWER (1) -------- (None) > --- PROPULSION (2) --- Light Treads Light Treads > --- UTILITY (2) ------ Large Storage Unit Structural Scanner > --- WEAPON (2) ------- Beam Rifle Light Cannon > --- INVENTORY (15) --- Improved Ion Engine Improved Heat Sink Hardened Light Armor Plating Hardened Light Armor Plating Hardened Light Armor Plating Hardened Light Armor Plating Beam Rifle Beam Rifle Makeshift Spear Peak State ------------ > --- POWER ------------ Improved Ion Engine > --- PROPULSION ------- Wheel Wheel > --- UTILITY ---------- Large Storage Unit Hardened Light Armor Plating > --- WEAPON ----------- Beam Rifle Assault Rifle > --- INVENTORY -------- Improved Ion Engine Light Treads Light Treads Wheel Improved Heat Sink Medium Storage Unit Hardened Light Armor Plating Hardened Light Armor Plating Hardened Light Armor Plating Beam Rifle Beam Rifle Beam Rifle Light Cannon Mining Laser [Rating: 12] Favorites ----------- Power Improved Ion Engine Engine Improved Ion Engine Propulsion Wheel Treads Light Treads Wheel Wheel Utility Large Storage Unit Device Structural Scanner Storage Large Storage Unit Protection Hardened Light Armor Plating Weapon Assault Rifle Energy Gun Beam Rifle Ballistic Gun Assault Rifle Ballistic Cannon Light Cannon Special Weapon Mining Laser Build | -11 -10 -10 ------- Run | Yrd Mat Min Slots Evolved . | . . . Power . | . . . Propulsion . | . . . Utility . | . . . Weapon . | . . . Parts Attached 29 | 8 9 12 Power 3 | 1 2 . Engine 3 | 1 2 . Core . | . . . Reactor . | . . . Propulsion 10 | 3 2 5 Treads 2 | . . 2 Leg . | . . . Wheel 8 | 3 2 3 Hover . | . . . Flight . | . . . Utility 7 | 2 3 2 Device 3 | 1 1 1 Storage 3 | 1 2 . Processor . | . . . Hackware . | . . . Protection 1 | . . 1 Artifact . | . . . Weapon 9 | 2 2 5 Energy Gun 4 | 1 1 2 Energy Cannon . | . . . Ballistic Gun 3 | 1 1 1 Ballistic Cannon 1 | . . 1 Launcher . | . . . Special Weapon 1 | . . 1 Impact Weapon . | . . . Slashing Weapon . | . . . Piercing Weapon . | . . . Special Melee Weapon . | . . . Unidentified Prototypes . | . . . Parts Lost 8 | . 1 7 Power 2 | . 1 1 Propulsion 3 | . . 3 Utility . | . . . Weapon 3 | . . 3 Highest Loss Streak 6 | . 1 6 To Critical Strikes . | . . . Average Slot Usage (%) 98 | . 98 98 Engine 13 | . 14 13 Wheel 27 | . 27 26 Device 11 | . 14 10 Storage 14 | . 14 14 Protection 2 | . . 3 Energy Gun 14 | . 14 14 Ballistic Gun 11 | . 13 9 Special Weapon 1 | . . 3 Naked Turns . | . . . Heaviest Build 37 | 14 33 37 Greatest Support 26 | 26 20 20 Greatest Overweight (x) 4 | 4 3 3 Average Overweight (x) . | . . 1 Largest Inventory Capacity 15 | 8 15 15 Average Capacity 12 | 7 11 15 Most Carried 15 | 8 15 15 Average Carried 11 | 4 9 14 Final Capacity 15 | 8 15 15 Final Carried 15 | 8 15 9 Class Distribution -------------------- 100% | Mutant Dominant Class ---------------- Mutant | -10/Materials Mutant | -10/Mines Resources | -11 -10 -10 ----------- Run | Yrd Mat Min Matter Collected 654 | 290 188 176 Remotely . | . . . Salvage Created 988 | 117 469 402 Parts 73 | 15 30 28 Haulers Intercepted . | . . . Recyclers Shooed 5 | 1 4 . Parts Field Recycled . | . . . Retrieved Matter . | . . . Parts Self-Destructed . | . . . Prevented . | . . . Kills | -11 -10 -10 ------- Run | Yrd Mat Min Combat Hostiles Destroyed 20 | . 8 12 Guns 20 | . 8 12 Classes Destroyed 8 | 3 3 2 Worker 4 | 2 1 1 Tunneler 2 | 1 . 1 Recycler 4 | 1 3 . Watcher 2 | . 2 . Swarmer 12 | . 6 6 Grunt 5 | . 2 3 Sentry 2 | . . 2 Assembled 1 | . . 1 Best Kill Streak 4 | 2 4 3 Combat Bots Only 3 | . 3 3 Max Kills in Single Turn 1 | 1 1 1 Gunslinging . | . . . Exploded . | . . . Melee . | . . . Uniques/NPCs Destroyed . | . . . Combat | -11 -10 -10 -------- Run | Yrd Mat Min Hostile Shots Fired 99 | . 33 66 Missed 28 | . 13 15 Damage Taken 1114 | . 186 928 Core 252 | . 44 208 Absorbed by Shields . | . . . Regen/Repaired (Parts) 41 | . 41 . Core Remaining (%) 100 | 100 . . Volleys Fired 88 | 5 36 47 Largest 2 | 2 2 2 Hottest 156 | 60 60 156 Shots Fired 168 | 10 72 86 Gun 162 | 10 72 80 Cannon 2 | . . 2 Launcher . | . . . Special 4 | . . 4 Kinetic 77 | 5 36 36 Thermal 91 | 5 36 50 Explosive . | . . . Electromagnetic . | . . . Robot Hit Streak 17 | 4 9 17 Robot Miss Streak 3 | 1 3 2 Penetration Max . | . . . Secondary Targets 3 | . 1 2 Max Gunslinging Chain 1 | . 1 1 Shots Hit Robots 97 | 6 46 45 Core Hits 46 | 5 20 21 Critical Kills 1 | . 1 . Critical Parts Destroyed . | . . . Critical Strikes 5 | . 1 4 Burn 4 | . . 4 Destroy 1 | . 1 . Melee Attacks . | . . . Impact . | . . . Slashing . | . . . Piercing . | . . . Sneak Attacks . | . . . Combat Hostiles . | . . . Follow-up Attacks . | . . . Damage Inflicted 1206 | 67 557 582 Guns 1186 | 67 557 562 Cannons 20 | . . 20 Explosions . | . . . Melee . | . . . Ramming . | . . . Kinetic 512 | 11 300 201 Thermal 694 | 56 257 381 Explosive . | . . . Electromagnetic . | . . . Impact . | . . . Slashing . | . . . Piercing . | . . . Highest Corruption 13 | . . 13 Average Corruption 9 | . . 9 Corruption Purged . | . . . Corruption Blocked . | . . . Effects 3 | . . 3 Message Errors 1 | . . 1 Energy Discharges 1 | . . 1 Alerts 1 | . . 1 Overload Shots . | . . . Overflow Damage . | . . . Projectiles . | . . . Explosions . | . . . Melee . | . . . Knockbacks . | . . . Impact . | . . . Kinetic . | . . . Secondary . | . . . Self-Inflicted Damage . | . . . Shots . | . . . Rammed . | . . . Targets Rammed . | . . . Kicked . | . . . Crushed . | . . . Highest Temperature 194 | . 24 194 Average Temperature 67 | . 11 71 Received Heat Transfer 231 | . 39 192 Siege Activations . | . . . Robots Corrupted . | . . . Combat Hostiles . | . . . Parts Fried . | . . . Impact Corruptions . | . . . Robots Melted . | . . . Combat Hostiles . | . . . Parts Melted 1 | . 1 . Heat Transferred 1958 | 125 575 1258 Parts Sabotaged . | . . . Parts Stolen . | . . . Parts Stripped . | . . . Power Chain Reactions . | . . . Alert | -11 -10 -10 ------- Run | Yrd Mat Min Peak Influence 268 | 20 206 268 Initial 53 | . 13 53 Average 145 | 4 131 175 Maximum Alert Level 1 | . 1 1 Low Security (%) 82 | 100 93 71 Level 1 17 | . 6 29 Level 2 . | . . . Level 3 . | . . . Level 4 . | . . . Level 5 . | . . . High Security . | . . . Max Security . | . . . Squads Dispatched 2 | . 2 . Investigation 1 | . 1 . Extermination . | . . . Reinforcement 1 | . 1 . Assault . | . . . Garrison . | . . . Intercept . | . . . Searches Triggered . | . . . Construction Impeded . | . . . Haulers Reinforced . | . . . Active Scanning Responses . | . . . Cargo Convoy Interrupts . | . . . Stealth | -11 -10 -10 --------- Run | Yrd Mat Min Distress Signals 1 | . 1 . Communications Jammed . | . . . Distress Signals . | . . . Times Spotted 42 | . 13 29 Peak Tracking Total 14 | . 3 14 Tactical Retreats 3 | . 2 1 Traps | -11 -10 -10 ------- Run | Yrd Mat Min Traps Triggered 1 | . 1 . Indirectly . | . . . Trap Hack Attempts . | . . . Triggered . | . . . Disarmed . | . . . Reprogrammed . | . . . Reused . | . . . Traps Extracted . | . . . Installed . | . . . Triggered . | . . . Machines | -11 -10 -10 ---------- Run | Yrd Mat Min Machines Disabled 3 | . . 3 Max in Single Turn 1 | . . 1 Machines Repaired . | . . . Machines Dismantled . | . . . Machines Sabotaged . | . . . Overloaded Fab Kills . | . . . Hacking | -11 -10 -10 --------- Run | Yrd Mat Min Machines Accessed 6 | . 5 1 Terminals 4 | . 3 1 Fabricators . | . . . Repair Stations 1 | . 1 . Recycling Units 1 | . 1 . Scanalyzers . | . . . Garrison Access . | . . . Total Hacks 21 | . 19 2 Successful 12 | . 12 . Failed 9 | . 7 2 Catastrophic 2 | . 2 . Database Lockouts . | . . . Manual 12 | . 10 2 Terminals 13 | . 11 2 Fabricators . | . . . Repair Stations 4 | . 4 . Recycling Units 4 | . 4 . Scanalyzers . | . . . Garrison Access . | . . . Terminal Hacks 5 | . 5 . Record 1 | . 1 . Robot Analysis 2 | . 2 . Locate Traps 1 | . 1 . Recall Investigation 1 | . 1 . Fabricator Hacks . | . . . Repair Station Hacks 3 | . 3 . Scan Component 2 | . 2 . Repair 1 | . 1 . Recycling Unit Hacks 2 | . 2 . Report Inventory 2 | . 2 . Scanalyzer . | . . . Garrison Access Hacks . | . . . Unauthorized Hacks 2 | . 2 . Terminals 1 | . 1 . Operators 1 | . 1 . Fabricators . | . . . Repair Stations . | . . . Recycling Units 1 | . 1 . Reject 1 | . 1 . Scanalyzers . | . . . Garrison Access . | . . . Data Cores Recovered . | . . . Used . | . . . Hacking Detections 6 | . 5 1 Full Trace Events 1 | . 1 . Feedback Events . | . . . Feedback Blocked . | . . . Robot Schematics Acquired . | . . . Robots Built . | . . . Authchips . | . . . Time . | . . . Total Robot Build Rating . | . . . Part Schematics Acquired . | . . . Parts Built . | . . . Authchips . | . . . Time . | . . . Total Part Build Rating . | . . . Parts Repaired 1 | . 1 . Time 36 | . 36 . Parts Recycled . | . . . Recycled Matter . | . . . Retrieved Matter . | . . . Retrieved Components . | . . . Parts Scanalyzed . | . . . Part Schematics Acquired . | . . . Parts Damaged . | . . . Bothacking | -11 -10 -10 ------------ Run | Yrd Mat Min Used RIF Installer . | . . . Robots Hacked . | . . . Non-combat . | . . . Combat . | . . . Robot Hacks Applied . | . . . Relay Couplers Released . | . . . Fabnet Peak Effective % . | . . . Robots Rewired . | . . . Allies Hacked . | . . . Hacks Repelled . | . . . Allies | -11 -10 -10 -------- Run | Yrd Mat Min Total Allies . | . . . Largest Group . | . . . Highest-Rated Group . | . . . Highest-Rated Ally . | . . . Total Orders . | . . . Ally Attacks . | . . . Total Damage . | . . . Kills . | . . . Allies Corrupted . | . . . Allies Melted . | . . . Intel | -11 -10 -10 ------- Run | Yrd Mat Min Robot Analysis Total 2 | . 2 . Derelict Logs Recovered 1 | . . 1 Drone Launches . | . . . Drone Recoveries . | . . . Exploration | -11 -10 -10 ------------- Run | Yrd Mat Min Turns Passed 1542 | 111 631 800 Spaces Moved 1172 | 73 478 621 Core 14 | 14 . . Treads 5 | . . 5 Legs . | . . . Wheels 1153 | 59 478 616 Hover . | . . . Flight . | . . . Fastest Speed 50 | 50 80 95 Average Speed 94 | 95 91 97 Slowest Speed 250 | 250 125 240 Overloaded Moves . | . . . Propulsion Burnouts . | . . . Robots Hopped . | . . . Cave-ins Triggered . | . . . Exploration Rate (%) 50 | 6 67 78 Regions Visited 2 Branch Regions 1 Pre-discovered Areas 1 | . . 1 Known Exits Taken . | . . . Unknown Exits Taken 2 | 1 1 . Scrap Searched 1 | . . 1 Spaces Dug 1 | . . 1 Terrain Destroyed 3 | . . 3 Melee . | . . . Projectile 3 | . . 3 AOE . | . . . Terrain Rammed . | . . . Walls Destroyed . | . . . Machines Disabled . | . . . Actions | -11 -10 -10 --------- Run | Yrd Mat Min Total 1428 | 102 602 724 Wait 94 | 5 51 38 Move 1170 | 72 477 621 Hop . | . . . Pick Up 26 | 9 15 2 Fast Attach 12 | 8 4 . Attach 8 | . 1 7 Detach 2 | 1 1 . Swap 9 | . 4 5 Drop 19 | 2 13 4 Fire 88 | 5 36 47 Melee . | . . . Ram . | . . . Kick . | . . . Crush . | . . . Escape Stasis . | . . . Rewire . | . . . Trap . | . . . Miscellaneous . | . . . Route ------- -11/Scrapyard -10/Materials (discovered 3 exits: [*Mat x2] / *Min) -10/Mines (discovered 2 exits: [*Mat x2]) History --------- Turn | Location | Event 25 | -11/Scrapyard | Discovered new exit (range 15) 112 | -11/Scrapyard | Entered Materials 329 | -10/Materials | Build established: Mutant 401 | -10/Materials | Repaired Broken Assault Rifle 411 | -10/Materials | Discovered new exit (range 7) 446 | -10/Materials | Discovered new exit (range 9) 587 | -10/Materials | Discovered new exit (range 13) 743 | -10/Materials | Entered Mines 745 | -10/Mines | Discovered new exit (range 6) 889 | -10/Mines | A weapon hastily lodged in a ceiling crevice suddenly fell to the ground 1251 | -10/Mines | Discovered new exit (range 9) 1256 | -10/Mines | Learned location of Storage (-7) 1445 | -10/Mines | Core integrity fell below 50% 1485 | -10/Mines | Assembled infested the area 1514 | -10/Mines | System corruption reached 10% 1533 | -10/Mines | Core integrity fell below 20% 1543 | -10/Mines | Destroyed by D-53 Grenadier with Mini Grenade Launcher Last Messages --------------- 01527_ as-27293 destroyed. 01527_ as-25426 destroyed. 01527_ as-57333 destroyed. 01531_ Beam Rifle destroyed. 01534_ U-05 Engineer lays Concrete. 01535_ The unstable cave ceiling collapses. 01535_ K-01 Serf destroyed. 01535_ U-05 Engineer lays Concrete. 01537_ R-06 Scavenger destroyed. 01537_ as-33647 destroyed. 01537_ U-05 Engineer lays Concrete. 01538_ The unstable cave ceiling collapses. 01538_ U-05 Engineer lays Concrete. 01539_ The unstable cave ceiling collapses. 01539_ U-05 Engineer lays Concrete. 01540_ System corrupted: Energy discharge (-13). 01540_ D-53 Grenadier suffers critical hit (Burn). 01540_ U-05 Engineer lays Concrete. 01542_ U-05 Engineer builds a Wall. Map ----- +----------------------------------------------------+ | ###?????#########????????????????????????????????? | | ###????###########????????????#################### | | ##????### ####???????????#################### | | ##????## ####??????????## ## | | ##????## ###??????????## """ """ """ ## | | ##???### ##??????????## " " """ """ ## | | ##??#### ##??????????## " " " " " " ## | | ###?#### ###??????????## ## | | ####### ###???????????## ## | | ###### ###?????######### %= ## | | ### ###?????##################=######## | | ## ## ######??## ############%######## | | ## ### ######??## ##????######* ###??? | | #### ##??## ##????### ###?? | | ####T ###### ##????## ###?? | | # ##### """" ###### ##????## ##?? | | # ##### """" ### ######### ! ##?? | | # #### """" ### ## ######### ###?? | | ############# ## ##### ##### | | ############# ## #### ###### #### | | ######???#### ########## ###### ## | | ######??#### # # ## ###### # # | | ####### ## # | | ###### ### #### ### ## | | ## #### #### ######## | | ## *%r%d @ #### ## ######## | | #### ## ## #### ###????? | | #### ###### ###u #### ####???? | | ?## ###### ### ##### ###???? | | ### ###### # a ###### ##???? | | ## ### a ########### ##???? | | "% % a ########## ###???? | | # ##???#### #####???? | | ### ## # # ##???### #####????? | | #### ### #######???## ###??????? | | ?######### = ############ ###???????? | | ??######### %! ##?????##### ###?????### | | ?????##### % ##????###=% ##??????## | | ????##### = ###????###*== ##??????## | | ####### #####????##[ ## ##??????## | | ###### #####?????###=#### ###?????## | | ###???????### ######## ##?????## | | ##?????????## ######### ##?????## | | ######## ###?????????## ##???#### #####??## | | ######### ###?????????## ##???### ######## | | ##????###### ##??????????## ##??### ##### | | ##?????##### ##??????????## ####### ####! | | ##????????## #####???????## ###### %% | | ##???????### #####???????## ### = = | | ##???????### ##???????## ## #### # # | +----------------------------------------------------+ Best States ------------- Heat Dissipation 25 Energy Generation 12 Energy Capacity 265 Matter Stores 300 Matter Capacity 300 Sight Range 16 Terrain Scan Density 10 Armor Coverage 150 Evasion (%) 44 Recoil Reduction 1 Item Schematics ----------------- None Robot Schematics ------------------ None Fabricated ------------ Nothing Alien Tech Used ----------------- None Achievements -------------- None Challenges ------------ None Game ------ Seed LightningCannonAutohacker Manual? 0 Play Time 00:18:50 Cumulative 132.7 hours Start 2024.03.31 @ 14:47:34 End 2024.03.31 @ 15:56:45 Sessions 2 Manual Loads 0 Difficulty Rogue Special Mode None Game No. 128 Rogue 128 Adventurer 0 Explorer 0 Win Type - Total 0 Types 0/0/0/0/0/0/0/0/0 Lore% 45 Gallery% 58 Achievement% 39 Wizard Run 0 Options --------- Layout 2 ASCII 1 Keyboard 1 Movement Numpad Keybinds 0 Fullscreen 2 Font 32/TamsynBold Map View 50x44 Zoom Use 0% Tactical HUD 1 Map Filters NONE Filters NONE Steam 1 RUN: 3262933f-b365-41ae-9186-07416051b678